[Event "UKR-ch Men Final 2018"]
[Site "Kiev"]
[Date "2018.12.17"]
[Round "6"]
[White "Kuzubov, Yuriy"]
[Black "Moiseenko, Alexander"]
[Result "1-0"]
[ECO "E04"]
[WhiteElo "2655"]
[BlackElo "2640"]
[Annotator "RC"]
[PlyCount "77"]
[EventDate "2018.12.11"]
[EventType "tourn"]
[EventCountry "UKR"]
[SourceTitle "playchess.com"]
[Source "ChessBase"]
[SourceQuality "1"]
[TimeControl "40/5400+30:1800+30"]

1. d4 {[%emt 0:00:00]} Nf6 {[%emt 0:00:00]} 2. c4 {[%emt 0:00:00]} e6 {[%emt 0:00:00]} 3. Nf3 {[%emt 0:00:00]} d5 {[%emt 0:00:01]} 4. g3 {[%emt 0:00:58]} dxc4 {[%emt 0:00:31]} 5. Bg2 {[%emt 0:00:07]} Bb4+ {[%emt 0:00:05]} 6. Bd2 {[%emt 0:00:35]} c5 {[%emt 0:00:08]} 7. O-O {[%emt 0:06:52]} O-O {[%emt 0:00:31]} 8. dxc5 {[%emt 0:03:54]} Bxc5 {[%emt 0:00:47]} 9. Qc2 {[%emt 0:02:29]} Nbd7 {[%emt 0:04:24]} 10. Qxc4 {[%emt 0:01:35]} b5 {[%emt 0:01:04]} 11. Qxb5 {[%emt 0:22:13]} Rb8 {[%emt 0:01:50]} 12. Qc4 {[%emt 0:29:47]} Rxb2 {[%emt 0:00:34]} 13. Qc1 {[%emt 0:01:07]} Rb6 {[%emt 0:38:59]} 14. Nc3 {[%emt 0:04:58]} Ba6 {[%emt 0:05:39]} 15. Na4 {[%emt 0:08:02]} Rb5 16. Rd1 Qe7 {[%emt 0:10:37]} 17. Nxc5 {[%emt 0:04:57]} Qxc5 18. Qxc5 Nxc5 {[%emt 0:03:50]} 19. Nd4 {[%emt 0:02:11]} Rb2 {[%emt 0:02:26]} 20. Bc1 {[%emt 0:01:02]} Rb6 {[%emt 0:01:01]} 21. Ba3 {[%emt 0:00:27]} Rc8 {[%emt 0:00:18]} 22. Nc6 {[%emt 0:01:02]} Rbxc6 {[%emt 0:03:20]} 23. Bxc6 {[%emt 0:00:05]} h5 {[%emt 0:02:30]} 24. Bf3 {[%emt 0:01:02]} Nce4 {[%emt 0:00:25]} 25. Rdc1 {[%emt 0:01:33]} Rd8 {[%emt 0:00:39]} 26. Rc2 {[%emt 0:02:43]} Nd2 {[%emt 0:02:52]} 27. Be7 {[%emt 0:00:44]} Nxf3+ {[%emt 0:00:09]} 28. exf3 {[%emt 0:00:05]} Rd3 {[%emt 0:00:32]} 29. Bxf6 {[%emt 0:00:09]} gxf6 {[%emt 0:00:02]} 30. Rc7 {[%emt 0:00:27]} Rxf3 {[%emt 0:00:45]} 31. a4 {[%emt 0:00:06]} Rd3 {[%emt 0:01:22]} 32. Rxa7 {[%emt 0:00:29]} Rd6 {[%emt 0:00:04]} 33. a5 {[%emt 0:00:59]} Kg7 {[%emt 0:00:37]} 34. Ra8 {[%emt 0:00:37]} h4 {[%emt 0:01:16]} 35. Rb8 {[%emt 0:00:24]} hxg3 {[%emt 0:00:18]} 36. hxg3 {[%emt 0:00:29]} Rd5 {[%emt 0:00:17]} 37. Rb6 {[%emt 0:00:28]} Be2 {[%emt 0:00:06]} 38. a6 {[%emt 0:00:48]} Bf3 {[%emt 0:00:07]} 39. Rb3 {[%emt 0:00:11]} 1-0

[Event "UKR-ch Men Final 2018"]
[Site "Kiev"]
[Date "2018.12.18"]
[Round "7"]
[White "Moiseenko, Alexander"]
[Black "Baklan, Vladimir"]
[Result "0-1"]
[ECO "E12"]
[WhiteElo "2640"]
[BlackElo "2608"]
[Annotator "RC"]
[PlyCount "78"]
[EventDate "2018.12.11"]
[EventType "tourn"]
[EventCountry "UKR"]
[SourceTitle "playchess.com"]
[Source "ChessBase"]
[SourceQuality "1"]
[TimeControl "40/5400+30:1800+30"]

1. d4 {[%emt 0:00:00]} Nf6 {[%emt 0:00:00]} 2. c4 {[%emt 0:00:00]} e6 {[%emt 0:00:00]} 3. Nf3 {[%emt 0:00:00]} b6 {[%emt 0:00:00]} 4. a3 {[%emt 0:00:39]} Bb7 {[%emt 0:00:00]} 5. Nc3 {[%emt 0:00:15]} d5 {[%emt 0:00:00]} 6. cxd5 {[%emt 0:01:13]} Nxd5 {[%emt 0:00:00]} 7. e3 {[%emt 0:02:16]} Nxc3 {[%emt 0:05:40]} 8. bxc3 {[%emt 0:00:39]} Bd6 {[%emt 0:00:02]} 9. Bd3 {[%emt 0:02:27]} c5 {[%emt 0:00:24]} 10. e4 {[%emt 0:02:36]} cxd4 {[%emt 0:05:11]} 11. cxd4 {[%emt 0:00:13]} O-O {[%emt 0:02:53]} 12. e5 {[%emt 0:08:16]} Be7 {[%emt 0:00:10]} 13. h4 {[%emt 0:00:10]} Bxf3 {[%emt 0:28:55]} 14. gxf3 {[%emt 0:31:25]} Nc6 {[%emt 0:01:28]} 15. Be3 {[%emt 0:00:56]} f5 {[%emt 0:07:25]} 16. exf6 {[%emt 0:08:00]} Bxf6 {[%emt 0:00:40]} 17. Bxh7+ {[%emt 0:00:42]} Kxh7 {[%emt 0:04:12]} 18. Qc2+ {[%emt 0:00:10]} Kh8 {[%emt 0:05:03]} 19. Qxc6 {[%emt 0:00:08]} Bxd4 {[%emt 0:00:09]} 20. Rd1 {[%emt 0:01:41]} e5 {[%emt 0:00:12]} 21. Qe4 {[%emt 0:07:17]} Qf6 {[%emt 0:04:15]} 22. Ke2 {[%emt 0:01:15]} Rac8 {[%emt 0:04:18]} 23. Rhg1 {[%emt 0:04:05]} Rc4 {[%emt 0:05:05]} 24. f4 {[%emt 0:08:32]} Qf7 {[%emt 0:01:45]} 25. Qg6 {[%emt 0:17:11]} Bxe3 {[%emt 0:04:32]} 26. fxe3 {[%emt 0:00:37]} exf4 {[%emt 0:01:11]} 27. Rd8 {[%emt 0:01:48]} Rc2+ {[%emt 0:05:30]} 28. Ke1 {[%emt 0:00:24]} Rc1+ {[%emt 0:00:58]} 29. Rd1 {[%emt 0:00:49]} Rxd1+ {[%emt 0:02:03]} 30. Kxd1 {[%emt 0:00:01]} Rd8+ {[%emt 0:05:10]} 31. Ke1 {[%emt 0:00:11]} Qxg6 {[%emt 0:00:04]} 32. Rxg6 {[%emt 0:00:05]} Re8 {[%emt 0:00:01]} 33. Kf2 {[%emt 0:01:08]} Rxe3 {[%emt 0:00:42]} 34. Rg4 {[%emt 0:00:12]} Rxa3 {[%emt 0:00:34]} 35. Rxf4 {[%emt 0:00:03]} a5 {[%emt 0:00:11]} 36. h5 {[%emt 0:00:10]} Kh7 {[%emt 0:00:19]} 37. Rg4 {[%emt 0:00:07]} Rb3 {[%emt 0:01:15]} 38. Ke2 {[%emt 0:00:13]} Rb5 {[%emt 0:00:27]} 39. Rg6 {[%emt 0:00:04]} a4 {[%emt 0:00:18]} 0-1